{"text_format":"3","workbook":"xlsx","n_sheets":1,"sheets":["COLLEGE APPLICATIONS"],"not_rendered":{"defined_names":1},"read":"whole","date_system":"1900"}

{"sheet":"COLLEGE APPLICATIONS","index":0,"n_rows":67,"n_cols":7,"rows_kept":67,"merged":[[65,1,65,6]]}
[]
[null,"College Applications"]
[]
[null,"Information","School 1","School 2","School 3","School 4","School 5"]
[null,"General",{"$f":"tblData[[#Headers],[School 1]]","v":"School 1"},{"$f":"tblData[[#Headers],[School 2]]","v":"School 2"},{"$f":"tblData[[#Headers],[School 3]]","v":"School 3"},{"$f":"tblData[[#Headers],[School 4]]","v":"School 4"},{"$f":"tblData[[#Headers],[School 5]]","v":"School 5"}]
[null,"Location"]
[null,"Rank information"]
[null,"Web address"]
[null,"Size"]
[null,"Colleges and schools"]
[null,"Other"]
[null,"Applying",{"$f":"tblData[[#Headers],[School 1]]","v":"School 1"},{"$f":"tblData[[#Headers],[School 2]]","v":"School 2"},{"$f":"tblData[[#Headers],[School 3]]","v":"School 3"},{"$f":"tblData[[#Headers],[School 4]]","v":"School 4"},{"$f":"tblData[[#Headers],[School 5]]","v":"School 5"}]
[null,"Admissions address"]
[null,"Admissions telephone"]
[null,"Contact person"]
[null,"Application fee"]
[null,"Date application due"]
[null,"Send transcripts to"]
[null,"Date application mailed"]
[null,"Accepted?"]
[null,"Accept or decline by date"]
[null,"Other"]
[null,"Requirements",{"$f":"tblData[[#Headers],[School 1]]","v":"School 1"},{"$f":"tblData[[#Headers],[School 2]]","v":"School 2"},{"$f":"tblData[[#Headers],[School 3]]","v":"School 3"},{"$f":"tblData[[#Headers],[School 4]]","v":"School 4"},{"$f":"tblData[[#Headers],[School 5]]","v":"School 5"}]
[null,"SAT minimum score"]
[null,"ACT minimum score"]
[null,"Other standardized tests"]
[null,"Grades"]
[null,"Advanced placement (AP) scores?"]
[null,"International Baccalaureate (IB) credit?"]
[null,"Essay requirements"]
[null,"Personal document requirements"]
[null,"Resume requirements"]
[null,"Community/volunteer work"]
[null,"Other"]
[null,"Finances",{"$f":"tblData[[#Headers],[School 1]]","v":"School 1"},{"$f":"tblData[[#Headers],[School 2]]","v":"School 2"},{"$f":"tblData[[#Headers],[School 3]]","v":"School 3"},{"$f":"tblData[[#Headers],[School 4]]","v":"School 4"},{"$f":"tblData[[#Headers],[School 5]]","v":"School 5"}]
[null,"Yearly tuition (non-resident)",{"v":0,"d":"$0.00"},{"v":0,"d":"$0.00"},{"v":0,"d":"$0.00"},{"v":0,"d":"$0.00"},{"v":0,"d":"$0.00"}]
[null,"Books/supplies ",{"v":0,"d":"$0.00"},{"v":0,"d":"$0.00"},{"v":0,"d":"$0.00"},{"v":0,"d":"$0.00"},{"v":0,"d":"$0.00"}]
[null,"Room and board",{"v":0,"d":"$0.00"},{"v":0,"d":"$0.00"},{"v":0,"d":"$0.00"},{"v":0,"d":"$0.00"},{"v":0,"d":"$0.00"}]
[null,"Transportation",{"v":0,"d":"$0.00"},{"v":0,"d":"$0.00"},{"v":0,"d":"$0.00"},{"v":0,"d":"$0.00"},{"v":0,"d":"$0.00"}]
[null,"Medical",{"v":0,"d":"$0.00"},{"v":0,"d":"$0.00"},{"v":0,"d":"$0.00"},{"v":0,"d":"$0.00"},{"v":0,"d":"$0.00"}]
[null,"Personal",{"v":0,"d":"$0.00"},{"v":0,"d":"$0.00"},{"v":0,"d":"$0.00"},{"v":0,"d":"$0.00"},{"v":0,"d":"$0.00"}]
[null,"Estimated total",{"$f":"SUM(C36:C41)","v":{"v":0,"d":"$0.00"}},{"$f":"SUM(D36:D41)","v":{"v":0,"d":"$0.00"}},{"$f":"SUM(E36:E41)","v":{"v":0,"d":"$0.00"}},{"$f":"SUM(F36:F41)","v":{"v":0,"d":"$0.00"}},{"$f":"SUM(G36:G41)","v":{"v":0,"d":"$0.00"}}]
[null,"Financial aid info"]
[null,"Scholarship info"]
[null,"Student employment info"]
[null,"Financial aid office location"]
[null,"Financial aid office telephone"]
[null,"Other"]
[null,"Non-Academic Student Activities",{"$f":"tblData[[#Headers],[School 1]]","v":"School 1"},{"$f":"tblData[[#Headers],[School 2]]","v":"School 2"},{"$f":"tblData[[#Headers],[School 3]]","v":"School 3"},{"$f":"tblData[[#Headers],[School 4]]","v":"School 4"},{"$f":"tblData[[#Headers],[School 5]]","v":"School 5"}]
[null,"Club sports I'm interested in"]
[null,"Greek system?"]
[null,"Other"]
[null,"Campus Visits",{"$f":"tblData[[#Headers],[School 1]]","v":"School 1"},{"$f":"tblData[[#Headers],[School 2]]","v":"School 2"},{"$f":"tblData[[#Headers],[School 3]]","v":"School 3"},{"$f":"tblData[[#Headers],[School 4]]","v":"School 4"},{"$f":"tblData[[#Headers],[School 5]]","v":"School 5"}]
[null,"When"]
[null,"Contact person"]
[null,"Contact's phone number/e-mail"]
[null,"Accommodations"]
[null,"Surrounding Area",{"$f":"tblData[[#Headers],[School 1]]","v":"School 1"},{"$f":"tblData[[#Headers],[School 2]]","v":"School 2"},{"$f":"tblData[[#Headers],[School 3]]","v":"School 3"},{"$f":"tblData[[#Headers],[School 4]]","v":"School 4"},{"$f":"tblData[[#Headers],[School 5]]","v":"School 5"}]
[null,"City, state"]
[null,"Chamber of Commerce Web site"]
[null,"Population"]
[null,"Median income"]
[null,"Average rental cost (2 bedroom)"]
[null,"Top 5 county employers"]
[null,"Average weather"]
[]
[null,"Notes:"]